bitfinex-derivatives/quotes_BTCF0:USTF0_20250728
["timestamp","ask_amount","ask_price","bid_price","bid_amount"]
[1753726073094,0.2124919,117660.0,117650.0,1.58730367]
[1753726073499,0.2610019,117660.0,117650.0,1.58730367]
[1753726074200,0.51463591,117660.0,117650.0,1.58730367]
[1753726074388,0.56965591,117660.0,117650.0,1.58730367]
[1753726075796,0.41134591,117660.0,117650.0,1.58730367]
[1753726075996,0.35632591,117660.0,117650.0,1.58730367]
[1753726076202,0.35732591,117660.0,117650.0,1.58830367]
[1753726076408,0.22740591,117660.0,117650.0,1.58830367]
[1753726076702,0.2134919,117660.0,117650.0,1.58930367]
[1753726077102,0.2620019,117660.0,117650.0,1.58930367]
[1753726077304,0.48324798,117660.0,117650.0,1.58930367]
[1753726077800,0.57065798,117660.0,117650.0,0.19911653]
[1753726078000,0.57065798,117660.0,117650.0,1.54486337]
[1753726078203,0.57065798,117660.0,117650.0,1.58778337]
[1753726078400,0.57065798,117660.0,117650.0,1.58714337]
[1753726078703,0.57065798,117660.0,117650.0,0.84922337]
[1753726078905,0.57065798,117660.0,117650.0,1.41754597]
[1753726079098,0.57065798,117660.0,117650.0,0.67922597]
[1753726079405,0.57065798,117660.0,117650.0,1.58730367]
[1753726081306,0.22740798,117660.0,117650.0,1.58730367]
[1753726081607,0.05885395,117680.0,117650.0,1.44159621]
[1753726081808,0.260968,117680.0,117670.0,1.34876758]
[1753726082010,0.3034594,117680.0,117670.0,1.71006477]
[1753726082308,0.3034594,117680.0,117670.0,1.68716291]
[1753726082501,0.3034594,117680.0,117670.0,1.71006477]
[1753726082708,0.2549494,117680.0,117670.0,2.14725421]
[1753726083007,0.2559494,117680.0,117670.0,1.71006477]
[1753726083203,0.2559494,117680.0,117670.0,1.69310622]
[1753726083399,0.2589494,117680.0,117670.0,1.69410622]
[1753726083605,0.2589494,117680.0,117670.0,1.76156228]
[1753726083805,0.3074594,117680.0,117670.0,1.76156228]
[1753726084003,0.216458,117680.0,117670.0,1.76156228]
[1753726084208,0.1739672,117680.0,117670.0,2.46165172]
[1753726084808,0.1739672,117680.0,117670.0,2.440334]
[1753726085109,0.1739672,117680.0,117670.0,2.46243218]
[1753726085308,0.1739672,117680.0,117670.0,2.49296453]
[1753726085808,0.1739672,117680.0,117670.0,2.47007417]
[1753726086102,0.1759718,117690.0,117670.0,2.47007417]
[1753726086103,0.084968,117700.0,117690.0,0.2589198]
[1753726086311,0.3458878,117700.0,117690.0,1.69190742]
[1753726086706,0.2973778,117700.0,117690.0,1.69190742]
[1753726086908,0.212409,117700.0,117690.0,1.69190742]
[1753726087104,0.212409,117700.0,117690.0,1.95480742]
[1753726087298,0.212409,117700.0,117690.0,1.97768422]
[1753726087903,0.218409,117700.0,117690.0,1.97868422]
[1753726088405,0.218409,117700.0,117690.0,2.02189497]
[1753726088604,0.266919,117700.0,117690.0,2.02189497]
[1753726088911,0.269919,117700.0,117690.0,2.09645928]
[1753726089505,0.263919,117700.0,117690.0,2.09545928]
[1753726089707,0.260919,117700.0,117690.0,2.09945928]
[1753726091409,0.260919,117700.0,117690.0,2.07658248]
[1753726091799,0.0849578,117710.0,117690.0,2.07658248]
[1753726092108,0.30121519,117710.0,117700.0,1.00867915]
[1753726092309,0.30121519,117710.0,117700.0,1.03077733]
[1753726093010,0.59595519,117710.0,117700.0,1.03077733]
[1753726093511,0.59695519,117710.0,117700.0,1.03077733]
[1753726094615,0.59695519,117710.0,117700.0,0.51902358]
[1753726094913,0.59695519,117710.0,117700.0,1.03077733]
[1753726096008,0.59695519,117710.0,117700.0,1.54253108]
[1753726096414,0.59695519,117710.0,117700.0,1.03077733]
[1753726097511,0.59695519,117710.0,117700.0,1.29367733]
[1753726098609,0.59695519,117710.0,117700.0,1.12375193]
[1753726098809,0.59695519,117710.0,117700.0,0.28499818]
[1753726099110,1.12317169,117710.0,117700.0,0.2629]
[1753726099306,0.2739652,117700.0,117690.0,0.04321075]
[1753726099505,0.5131752,117700.0,117690.0,0.75336]
[1753726099813,0.5131752,117700.0,117680.0,0.51175375]
[1753726099814,0.513204,117680.0,117670.0,0.70850239]
[1753726100013,0.513204,117680.0,117670.0,1.52642387]
[1753726100208,0.513204,117680.0,117670.0,1.58712387]
[1753726100413,0.513204,117680.0,117670.0,0.17253012]
[1753726100720,0.512204,117680.0,117670.0,0.92545012]
[1753726101415,0.512204,117680.0,117670.0,0.92945012]
[1753726101618,0.511204,117680.0,117670.0,0.92945012]
[1753726102214,0.511204,117680.0,117670.0,0.92869012]
[1753726102618,0.512204,117680.0,117670.0,0.92869012]
[1753726102808,0.512204,117680.0,117670.0,1.44044387]
[1753726103004,0.512204,117680.0,117670.0,1.52798387]
[1753726103210,0.514204,117680.0,117670.0,1.52398387]
[1753726103915,0.514204,117680.0,117670.0,1.58468387]
[1753726104111,0.52928023,117680.0,117670.0,1.58353557]
[1753726104418,0.52928023,117680.0,117670.0,1.56180707]
[1753726104721,0.52898698,117680.0,117670.0,1.56180707]
[1753726104916,0.52898698,117680.0,117670.0,0.9246695]
[1753726105113,0.52898698,117680.0,117670.0,0.9261095]
[1753726105418,0.52898698,117680.0,117670.0,1.67251557]
[1753726105619,0.52798698,117680.0,117670.0,1.73321557]
[1753726105918,0.52898698,117680.0,117670.0,1.56324707]
[1753726106612,0.52998698,117680.0,117670.0,1.56324707]
[1753726107323,0.52998698,117680.0,117670.0,1.73321557]
[1753726108717,0.52998698,117680.0,117670.0,1.77613557]
[1753726109320,0.52998698,117680.0,117670.0,1.60616707]
[1753726110419,0.52998698,117680.0,117670.0,1.02253547]
[1753726110620,0.18673698,117680.0,117670.0,1.75353973]
[1753726110816,0.18673698,117680.0,117670.0,2.13730242]
[1753726111323,0.18673698,117680.0,117670.0,1.70050438]
[1753726112012,0.22983698,117680.0,117670.0,1.70050438]
[1753726112211,0.22983698,117680.0,117670.0,1.96440438]
[1753726112916,0.22783698,117680.0,117670.0,1.96440438]
[1753726113118,0.22783698,117680.0,117670.0,1.96540438]
[1753726113322,0.22783698,117680.0,117670.0,1.79543598]
[1753726113619,0.22783698,117680.0,117670.0,1.96540438]
[1753726113817,0.22783698,117680.0,117670.0,1.79543598]
[1753726114513,0.22783698,117680.0,117670.0,1.96540438]
[1753726114713,0.22783698,117680.0,117670.0,1.79543598]
[1753726116223,0.52366698,117680.0,117670.0,1.13078598]
[1753726116414,0.52366698,117680.0,117670.0,1.92550598]
[1753726116615,0.45403698,117680.0,117670.0,2.09547428]
[1753726116815,0.45403698,117680.0,117670.0,1.92550598]
[1753726117323,0.45403698,117680.0,117670.0,2.09547418]
[1753726117618,0.45503698,117680.0,117670.0,2.09447418]
[1753726117819,0.45503698,117680.0,117670.0,1.92450598]
[1753726118020,0.52466698,117680.0,117670.0,1.92350598]
[1753726118223,0.52466698,117680.0,117670.0,1.66060598]
[1753726123027,0.52466698,117680.0,117670.0,0.90880598]
[1753726123230,0.52466698,117680.0,117670.0,1.65688598]
[1753726123827,0.52466698,117680.0,117670.0,1.82685328]
[1753726124026,0.52466698,117680.0,117670.0,1.65688598]
[1753726124222,0.52466698,117680.0,117670.0,1.63496562]
[1753726124821,0.52466698,117680.0,117670.0,0.25892758]
[1753726125019,0.52466698,117680.0,117670.0,1.41923442]
[1753726125229,0.52466698,117680.0,117670.0,1.47993442]
[1753726125428,0.52466698,117680.0,117670.0,1.45973562]
[1753726126221,0.52466698,117680.0,117670.0,1.47994394]
[1753726127432,0.52466698,117680.0,117670.0,1.45973562]
[1753726127833,0.52466698,117680.0,117670.0,1.50265562]
[1753726128428,0.22883698,117680.0,117670.0,1.50265562]
[1753726129426,0.32038698,117680.0,117670.0,1.50265562]
[1753726129632,0.46738698,117680.0,117670.0,1.50265562]
[1753726130140,0.52466698,117680.0,117670.0,1.52288975]
[1753726130434,0.18373698,117680.0,117670.0,1.07708705]
[1753726130620,0.18373698,117680.0,117670.0,1.82188705]
[1753726130822,0.18373698,117680.0,117670.0,1.65191975]
[1753726131022,0.52466698,117680.0,117670.0,1.65191975]
[1753726131536,0.52466698,117680.0,117670.0,1.82188705]
[1753726132033,0.36348698,117680.0,117670.0,1.82188705]
[1753726132734,0.45133698,117680.0,117670.0,1.82188705]
[1753726132931,0.52033698,117680.0,117670.0,1.81996705]
[1753726133131,0.52033698,117680.0,117670.0,0.86419975]
[1753726133530,0.52033698,117680.0,117670.0,1.77688705]
[1753726133828,0.52033698,117680.0,117670.0,1.81980705]
[1753726134033,0.52033698,117680.0,117670.0,1.64983975]
[1753726135631,0.52033698,117680.0,117670.0,1.63240397]
[1753726136629,0.95713502,117680.0,117670.0,0.13041593]
[1753726136830,0.95713502,117680.0,117670.0,0.95285593]
[1753726137030,0.52033698,117680.0,117670.0,0.95285593]
[1753726137230,0.52033698,117680.0,117670.0,1.01355593]
[1753726138647,0.52033698,117680.0,117670.0,1.45035397]
[1753726139149,0.52033698,117680.0,117670.0,1.01355593]
[1753726140240,0.1699796,117660.0,117650.0,0.08148]
[1753726140440,1.01897392,117660.0,117650.0,0.26300421]
[1753726140645,1.06147192,117660.0,117650.0,1.00220421]
[1753726140848,1.06147192,117660.0,117650.0,0.90157]
[1753726141146,0.3046385,117640.0,117630.0,1.23582]
[1753726141351,0.52371148,117640.0,117630.0,2.01653706]
[1753726141547,0.52371148,117640.0,117630.0,2.4962551]
[1753726141752,0.52371148,117640.0,117630.0,2.6662781]
[1753726141953,0.52171148,117640.0,117630.0,2.4960551]
[1753726142156,0.52171148,117640.0,117630.0,1.7572951]
[1753726142550,0.18279148,117640.0,117630.0,2.6657181]
[1753726142956,0.18279148,117640.0,117630.0,2.5546551]
[1753726143160,0.18079148,117640.0,117630.0,2.5546551]
[1753726143359,0.51971148,117640.0,117630.0,2.5546551]
[1753726143558,0.45071148,117640.0,117630.0,2.5546551]
[1753726144150,0.28296148,117640.0,117630.0,2.7246789]
[1753726144361,0.18079148,117640.0,117630.0,2.7246789]
[1753726144548,0.18179148,117640.0,117630.0,2.5586551]
[1753726144953,0.22923148,117640.0,117630.0,2.5586551]
[1753726145759,0.52071148,117640.0,117630.0,1.8202551]
[1753726145962,0.52071148,117640.0,117630.0,2.5577351]
[1753726146665,0.52071148,117640.0,117630.0,1.7773351]
[1753726146961,0.52071148,117640.0,117630.0,2.5148151]
[1753726147161,0.52071148,117640.0,117630.0,2.5577351]
[1753726147960,0.52171148,117640.0,117630.0,2.5577351]
[1753726148461,0.52171148,117640.0,117630.0,1.18665776]
[1753726148756,1.08663184,117640.0,117630.0,0.73652]
[1753726148955,0.5089439,117630.0,117620.0,0.10224361]
[1753726149156,0.52372688,117630.0,117620.0,0.10224361]
[1753726149357,0.52372688,117630.0,117620.0,0.83872361]
[1753726149556,0.52372688,117630.0,117620.0,1.47553165]
[1753726149757,0.52372688,117630.0,117620.0,1.51845165]
[1753726150359,0.36687688,117630.0,117620.0,1.51845165]
[1753726150760,0.23424688,117630.0,117620.0,1.68848985]
[1753726151161,0.23424688,117630.0,117620.0,1.51845165]
[1753726151367,0.32209688,117630.0,117620.0,1.51845165]
[1753726151566,0.43982688,117630.0,117620.0,1.51845165]
[1753726151866,0.52572688,117630.0,117620.0,1.51845165]
[1753726152061,0.52572688,117630.0,117620.0,1.47553165]
[1753726152254,1.13255693,117630.0,117620.0,0.6974132]
[1753726152458,1.13255693,117630.0,117620.0,0.6078081]
[1753726152763,1.260444,117630.0,117620.0,0.3512739]
[1753726152958,1.260444,117630.0,117620.0,0.1238055]
[1753726153361,0.5089583,117620.0,117610.0,0.86440654]
[1753726153563,0.52374128,117620.0,117610.0,0.85542]
[1753726153859,0.52374128,117620.0,117610.0,0.97913214]
[1753726154059,0.52374128,117620.0,117610.0,1.37310804]
[1753726155166,0.52474128,117620.0,117610.0,0.99473]
[1753726155568,0.52474128,117620.0,117610.0,1.47304429]
[1753726155766,0.52474128,117620.0,117610.0,1.43152804]
[1753726156870,0.52474128,117620.0,117610.0,0.79472]
[1753726157366,0.52474128,117620.0,117610.0,0.85542]
[1753726157567,0.52474128,117620.0,117610.0,0.92197532]
[1753726157765,0.52474128,117620.0,117610.0,0.80231532]
[1753726157962,1.25877516,117620.0,117610.0,2e-08]
[1753726158156,0.3046817,117610.0,117600.0,0.73468]
[1753726158471,0.52375468,117610.0,117600.0,0.85434]
[1753726159157,0.52375468,117610.0,117600.0,0.88655]
[1753726159564,0.52375468,117610.0,117600.0,0.93623]
[1753726159962,0.52375468,117610.0,117600.0,0.93723]
[1753726160158,0.31217468,117610.0,117600.0,1.43244804]
[1753726160367,0.18615126,117610.0,117600.0,1.47536804]
[1753726160765,0.18615273,117610.0,117600.0,1.47536804]
[1753726160966,0.23359273,117610.0,117600.0,1.54200623]
[1753726161363,0.18615273,117610.0,117600.0,2.14887187]
[1753726161570,0.08427273,117610.0,117600.0,2.14887187]
[1753726161961,0.08427273,117610.0,117600.0,1.54200623]
[1753726162168,0.22402273,117610.0,117600.0,1.66831383]
[1753726162368,0.22402273,117610.0,117600.0,1.49824623]
[1753726162568,0.13031273,117610.0,117600.0,1.49824623]
[1753726162863,0.43308273,117610.0,117600.0,1.49824623]
[1753726163069,0.43308273,117610.0,117600.0,0.76440623]
[1753726163265,0.43308273,117610.0,117600.0,1.49824623]
[1753726163266,0.4169817,117610.0,117600.0,1.49824623]
[1753726163469,0.43309402,117610.0,117600.0,1.54026947]
[1753726163874,0.43309402,117610.0,117600.0,0.85818819]
[1753726164075,0.43309402,117610.0,117600.0,0.12506819]
[1753726164372,0.43309402,117610.0,117600.0,0.85818819]
[1753726164878,0.43309402,117610.0,117600.0,0.93128819]
[1753726165979,0.43309402,117610.0,117600.0,1.36808623]
[1753726165980,0.13032402,117610.0,117600.0,1.36808623]
[1753726166180,0.13032402,117610.0,117600.0,1.53815383]
[1753726166375,0.13032402,117610.0,117600.0,1.36808623]
[1753726166573,0.13032402,117610.0,117600.0,1.53815383]
[1753726166772,0.13032402,117610.0,117600.0,1.36808623]
[1753726167278,0.13032402,117610.0,117600.0,1.53815383]
[1753726168679,0.13032402,117610.0,117600.0,1.36808623]
[1753726169080,0.08428402,117610.0,117600.0,1.97495187]
[1753726169273,0.01611232,117610.0,117600.0,1.97495187]
[1753726169474,0.18616402,117610.0,117600.0,1.9953351]
[1753726169783,0.18616402,117610.0,117600.0,1.8252675]
[1753726170579,0.23220402,117610.0,117600.0,0.65534946]
[1753726170885,0.53497402,117610.0,117600.0,1.36796623]
[1753726171081,0.53497402,117610.0,117600.0,0.93116819]
[1753726171273,0.53497402,117610.0,117600.0,0.19816819]
[1753726171478,0.53497402,117610.0,117600.0,0.93116819]
[1753726171886,0.53497402,117610.0,117600.0,1.36796623]
[1753726175386,0.53497402,117610.0,117600.0,1.3887236]
[1753726175778,0.18616402,117610.0,117600.0,1.558791]
[1753726175978,0.18616402,117610.0,117600.0,1.99558904]
[1753726176381,0.23220402,117610.0,117600.0,1.558791]
[1753726176584,0.18616402,117610.0,117600.0,1.558791]
[1753726177078,0.18616402,117610.0,117600.0,1.99558904]
[1753726177581,0.18616402,117610.0,117600.0,1.558791]
[1753726177982,0.18616402,117610.0,117600.0,1.3887236]
[1753726178390,0.18616402,117610.0,117600.0,1.558791]
[1753726178788,0.18616402,117610.0,117600.0,1.3887236]
[1753726178981,0.23220402,117610.0,117600.0,1.558791]
[1753726179288,0.23220402,117610.0,117600.0,1.5587899]
[1753726180290,0.23220402,117610.0,117600.0,1.99558794]
[1753726180691,0.18616402,117610.0,117600.0,1.99558794]
[1753726181393,0.18616402,117610.0,117600.0,1.26258794]
[1753726181593,0.18616402,117610.0,117600.0,1.3886436]
[1753726181795,0.23220402,117610.0,117600.0,1.5587099]
[1753726182987,0.18616402,117610.0,117600.0,1.99550794]
[1753726184199,0.23220402,117610.0,117600.0,1.99550794]
[1753726184394,0.23220402,117610.0,117600.0,1.5587099]
[1753726184594,0.23220402,117610.0,117600.0,1.99550794]
[1753726185102,0.23220402,117610.0,117600.0,1.5587099]
[1753726185290,0.23220402,117610.0,117600.0,1.99550794]
[1753726186390,0.18616402,117610.0,117600.0,1.99550794]
[1753726188505,0.23220402,117610.0,117600.0,1.99550794]
[1753726188705,0.18616402,117610.0,117600.0,1.99550794]
[1753726188901,0.0850219,117620.0,117600.0,1.84201924]
[1753726189107,0.2550643,117620.0,117610.0,1.33960994]
[1753726189295,0.2550643,117620.0,117610.0,1.36036731]
[1753726189500,0.3795943,117620.0,117610.0,1.19031541]
[1753726189801,0.6038743,117620.0,117610.0,1.19031541]
[1753726190410,0.6038743,117620.0,117610.0,1.36036731]
[1753726190799,0.6048743,117620.0,117610.0,1.36036731]
[1753726192010,0.3021043,117620.0,117610.0,0.62769731]
[1753726192305,0.3049943,117620.0,117610.0,1.19050541]
[1753726192503,0.6098843,117620.0,117610.0,1.19050541]
[1753726192708,0.6098843,117620.0,117610.0,1.19042541]
[1753726193104,0.6098843,117620.0,117610.0,0.45769541]
[1753726193298,1.04668234,117620.0,117610.0,0.73264007]
[1753726193506,1.17427089,117620.0,117610.0,0.73264]
[1753726194907,0.1700518,117610.0,117600.0,0.06663819]
[1753726195113,0.5238718,117610.0,117600.0,0.7326]
[1753726196009,0.5238718,117610.0,117600.0,0.7336]
[1753726196699,0.5238718,117610.0,117600.0,0.73469]
[1753726197814,0.3738218,117610.0,117600.0,1.17148804]
[1753726198113,0.5238718,117610.0,117600.0,1.17148804]
[1753726198712,0.5238718,117610.0,117600.0,1.34155514]
[1753726198900,0.4315918,117610.0,117600.0,1.40840515]
[1753726199104,0.5238718,117610.0,117600.0,1.40840515]
[1753726199613,0.4501618,117610.0,117600.0,1.40840515]
[1753726200410,0.1700518,117610.0,117600.0,1.84520319]
[1753726200802,0.1700518,117610.0,117600.0,1.84534319]
[1753726201003,0.23468432,117610.0,117600.0,1.84534319]
[1753726201206,0.18575432,117610.0,117600.0,1.84534319]
[1753726201715,0.23468432,117610.0,117600.0,1.84534319]
[1753726202508,0.18575432,117610.0,117600.0,1.84534319]
[1753726203612,0.23468432,117610.0,117600.0,1.84534319]
[1753726204311,0.23468432,117610.0,117600.0,1.86825632]
[1753726205112,0.23468432,117610.0,117600.0,1.67527609]
[1753726205301,0.23468432,117610.0,117600.0,1.25955599]
[1753726205505,0.23468432,117610.0,117600.0,1.42962229]
[1753726205706,0.23468432,117610.0,117600.0,1.86642033]
[1753726206113,0.18566432,117610.0,117600.0,2.15191359]
[1753726206414,0.2975838,117620.0,117610.0,0.1700519]
[1753726206716,0.27058203,117620.0,117610.0,0.65084114]
[1753726207513,0.55069203,117620.0,117610.0,1.21302924]
[1753726207817,0.31951203,117620.0,117610.0,1.38308114]
[1753726208012,0.27058203,117620.0,117610.0,1.38408114]
[1753726208616,0.27058203,117620.0,117610.0,1.38308114]
[1753726208816,0.27158203,117620.0,117610.0,1.38308114]
[1753726209210,0.27158203,117620.0,117610.0,1.64598114]
[1753726209416,0.2464938,117630.0,117620.0,0.1700374]
[1753726209605,0.2464938,117630.0,117620.0,0.65081889]
[1753726211409,0.2464938,117630.0,117620.0,0.65181889]
[1753726211807,0.2464938,117630.0,117620.0,0.65281889]
[1753726212516,0.2954238,117630.0,117620.0,0.65281889]
[1753726212814,0.2954238,117630.0,117620.0,0.72840386]
[1753726213215,0.2954238,117630.0,117620.0,0.55836646]
[1753726213515,0.6003138,117630.0,117620.0,0.55836646]
[1753726213714,0.6003138,117630.0,117620.0,0.02307794]
[1753726214111,1.23958208,117630.0,117620.0,4e-08]
[1753726214418,1.23958208,117630.0,117600.0,0.06685001]
[1753726214419,0.5238717,117610.0,117600.0,0.06685001]
[1753726214614,0.5238717,117610.0,117600.0,0.73188]
[1753726215922,0.5238717,117610.0,117600.0,1.24426301]
[1753726216817,0.4316061,117600.0,117590.0,1.72926425]
[1753726217026,0.5238861,117600.0,117590.0,2.46110425]
[1753726217423,0.5238861,117600.0,117590.0,2.46102425]
[1753726218221,0.5238861,117600.0,117590.0,2.63110505]
[1753726218419,0.5238861,117600.0,117590.0,2.63210505]
[1753726218625,0.5238861,117600.0,117590.0,2.70160342]
[1753726218924,0.5238861,117600.0,117590.0,2.53152262]
[1753726219124,0.5238861,117600.0,117590.0,2.70160302]
[1753726219328,0.5238861,117600.0,117590.0,2.53152262]
[1753726219524,0.5238861,117600.0,117590.0,2.70160312]
[1753726219719,0.3578961,117600.0,117590.0,2.70160312]
[1753726219919,0.2189961,117600.0,117590.0,2.70160312]
[1753726220725,0.1700661,117600.0,117590.0,2.70160312]
[1753726221530,0.23420694,117600.0,117590.0,2.70160312]
[1753726221829,0.23420694,117600.0,117590.0,2.96450312]
[1753726224229,0.2189961,117600.0,117590.0,2.98740863]
[1753726226227,0.2189961,117600.0,117590.0,3.00873995]
[1753726228728,0.39580897,117600.0,117590.0,3.00873995]
[1753726229034,0.39580897,117600.0,117590.0,1.83337995]
[1753726229529,0.32431897,117600.0,117590.0,1.83337995]
[1753726229725,0.23420897,117600.0,117590.0,1.83337995]
[1753726229925,0.39580897,117600.0,117590.0,1.83337995]
[1753726230428,0.32431897,117600.0,117590.0,1.10161995]
[1753726230631,0.53561897,117600.0,117590.0,0.93153945]
[1753726230927,0.53561897,117600.0,117590.0,1.66277945]
[1753726231328,0.53561897,117600.0,117590.0,1.83286005]
[1753726231828,0.53561897,117600.0,117590.0,1.80995454]
[1753726233332,0.32431897,117600.0,117590.0,1.80995454]
[1753726233531,0.18527897,117600.0,117590.0,0.81581454]
[1753726233730,0.2156361,117600.0,117590.0,1.54697454]
[1753726234032,0.23086108,117600.0,117590.0,1.54697454]
[1753726235720,0.23086108,117600.0,117590.0,1.56988005]
[1753726235925,0.18529128,117600.0,117590.0,1.56988005]
[1753726236326,0.01522498,117600.0,117590.0,1.56988005]
[1753726237130,0.18529128,117600.0,117590.0,1.56988005]
[1753726237525,0.1700663,117600.0,117590.0,1.56988005]
[1753726238433,0.18519395,117600.0,117590.0,1.56988005]
[1753726238832,0.1700663,117600.0,117590.0,1.56988005]
[1753726239436,0.18519636,117600.0,117590.0,1.84038211]
[1753726239737,0.23076636,117600.0,117590.0,1.84038211]
[1753726240035,0.23076636,117600.0,117590.0,3.01622211]
[1753726244730,0.23076636,117600.0,117590.0,3.3786658]
[1753726245946,0.06070006,117600.0,117590.0,3.3786658]
[1753726246245,0.01513006,117600.0,117590.0,3.39398332]
[1753726247052,0.2125794,117610.0,117600.0,0.1700665]
[1753726247246,0.3006655,117610.0,117600.0,1.8270612]
[1753726248043,0.3907755,117610.0,117600.0,1.8270612]
[1753726248738,0.3006655,117610.0,117600.0,1.8270612]
[1753726251148,0.3006655,117610.0,117600.0,2.0899612]
[1753726251937,0.3006655,117610.0,117600.0,2.11290954]
[1753726252744,0.2581494,117610.0,117600.0,2.0899612]
[1753726253046,0.4634016,117640.0,117630.0,0.2608234]
[1753726253252,0.2125262,117640.0,117630.0,1.5453236]
[1753726253746,0.3633162,117640.0,117630.0,1.39824615]
[1753726253951,0.4208962,117640.0,117630.0,1.56826965]
[1753726254743,0.4208962,117640.0,117630.0,1.62027814]
[1753726255143,0.5589262,117640.0,117630.0,1.64322409]
[1753726255343,0.5589262,117640.0,117630.0,1.62027814]
[1753726255548,0.5609262,117640.0,117630.0,1.62027814]
[1753726256251,0.5619262,117640.0,117630.0,1.62027814]
[1753726256943,0.2609062,117640.0,117630.0,1.62027814]
[1753726257145,0.2155262,117640.0,117630.0,1.62027814]
[1753726257942,0.2609062,117640.0,117630.0,1.62027814]
[1753726259137,0.27579546,117640.0,117630.0,1.62027814]
[1753726259949,0.23041546,117640.0,117630.0,1.62027814]
[1753726260338,0.27579546,117640.0,117630.0,1.62027814]
[1753726260742,0.23329096,117640.0,117630.0,1.62027814]
[1753726261142,0.23129096,117640.0,117630.0,1.62027814]
[1753726261345,0.23029096,117640.0,117630.0,1.64322409]
[1753726261546,0.06026926,117640.0,117630.0,1.64322409]
[1753726261844,0.01488926,117640.0,117630.0,1.64322409]
[1753726262041,0.3003906,117650.0,117640.0,0.3564291]
[1753726262241,0.26988771,117650.0,117640.0,0.89042374]
[1753726262447,0.31526771,117650.0,117640.0,0.89042374]
[1753726263250,0.52785771,117650.0,117640.0,0.89042374]
[1753726263443,0.61628771,117650.0,117640.0,0.89042374]
[1753726264053,0.61828771,117650.0,117640.0,0.89042374]
[1753726264250,0.61828771,117650.0,117640.0,0.86879689]
[1753726264842,0.61928771,117650.0,117640.0,0.86879689]
[1753726266846,0.61928771,117650.0,117640.0,0.8905567]
[1753726268749,0.61928771,117650.0,117640.0,0.37818891]
[1753726268950,0.61828771,117650.0,117640.0,0.8905567]
[1753726269849,0.61628771,117650.0,117640.0,0.8905567]
[1753726270062,0.61628771,117650.0,117640.0,1.4035676]
[1753726270356,0.61628771,117650.0,117640.0,1.38180779]
[1753726270753,0.61828771,117650.0,117640.0,1.40356359]
[1753726270955,0.61828771,117650.0,117640.0,1.34407359]
[1753726271150,0.32081471,117650.0,117630.0,0.2629]
[1753726271450,0.5164088,117640.0,117630.0,0.2629]
[1753726271660,0.53128591,117640.0,117630.0,0.99118]
[1753726271955,0.53128591,117640.0,117630.0,1.24064779]
[1753726272154,0.53128591,117640.0,117630.0,1.29088779]
[1753726273260,0.53128591,117640.0,117630.0,1.32219779]
[1753726273462,0.53128591,117640.0,117630.0,1.49222099]
[1753726274256,0.53128591,117640.0,117630.0,1.55936875]
[1753726274459,0.53128591,117640.0,117630.0,1.38934555]
[1753726274654,0.53128591,117640.0,117630.0,1.34396555]
[1753726274860,0.53428591,117640.0,117630.0,1.18733929]
[1753726275257,0.53628591,117640.0,117630.0,1.18733929]
[1753726275753,0.53628591,117640.0,117630.0,1.23757929]
[1753726276560,0.53328591,117640.0,117630.0,1.23757929]
[1753726276762,0.53528591,117640.0,117630.0,1.40760249]
[1753726276957,0.53528591,117640.0,117630.0,1.45298249]
[1753726277167,0.53328591,117640.0,117630.0,1.45298249]
[1753726277370,0.53628591,117640.0,117630.0,1.45298249]
[1753726278272,0.53428591,117640.0,117630.0,1.45298249]
[1753726278473,0.53528591,117640.0,117630.0,1.45298249]
[1753726278668,0.27976591,117640.0,117630.0,1.45298249]
[1753726278972,0.18888591,117640.0,117630.0,1.91321997]
[1753726279165,0.18988591,117640.0,117630.0,1.91321997]
[1753726279367,0.18888591,117640.0,117630.0,1.47592844]
[1753726279570,0.23426591,117640.0,117630.0,1.47592844]
[1753726280168,0.23426591,117640.0,117630.0,1.91321997]
[1753726280868,0.23226591,117640.0,117630.0,1.91321997]
[1753726281076,0.23326591,117640.0,117630.0,1.91321997]
[1753726281371,0.18788591,117640.0,117630.0,1.91321997]
[1753726281772,0.18788591,117640.0,117630.0,1.94381665]
[1753726282166,0.001,117640.0,117630.0,2.20671665]
[1753726282367,0.2549721,117660.0,117650.0,0.18109]
[1753726282567,0.3040121,117660.0,117650.0,1.53778838]
[1753726283870,0.3060121,117660.0,117650.0,1.53778838]
[1753726284374,0.3060121,117660.0,117650.0,1.56070904]
[1753726284874,0.3060121,117660.0,117650.0,1.62900543]
[1753726285069,0.2635151,117660.0,117650.0,1.62900543]
[1753726285375,0.2645151,117660.0,117650.0,1.62900543]
[1753726285569,0.2645151,117660.0,117650.0,0.73141113]
[1753726285766,0.3114551,117660.0,117650.0,1.45881113]
[1753726285971,0.5651551,117660.0,117650.0,1.45881113]
[1753726286167,0.5651551,117660.0,117650.0,1.62880493]
[1753726286373,0.5651551,117660.0,117650.0,1.45881113]
[1753726286976,0.5651551,117660.0,117650.0,1.62880513]
[1753726287478,0.5651551,117660.0,117650.0,1.45881113]
[1753726288981,0.5651551,117660.0,117650.0,0.68603113]
[1753726289173,0.5651551,117660.0,117650.0,0.8400696]
[1753726289375,1.00244663,117660.0,117650.0,0.81714894]
[1753726289880,1.00244663,117660.0,117650.0,0.79533639]
[1753726290683,0.5651551,117660.0,117650.0,0.79533639]
[1753726292183,0.5651551,117660.0,117650.0,1.55780605]
[1753726292381,0.5651551,117660.0,117650.0,1.60318605]
[1753726292585,0.5651551,117660.0,117650.0,1.6250493]
[1753726294286,0.57986285,117660.0,117650.0,1.6250493]
[1753726297087,0.41715285,117660.0,117650.0,1.6250493]
[1753726297592,0.57986285,117660.0,117650.0,1.6250493]
[1753726298390,0.57986285,117660.0,117650.0,1.4550551]
[1753726300376,0.23018285,117660.0,117650.0,1.4550551]
[1753726300583,0.23018285,117660.0,117650.0,1.6250493]
[1753726301187,0.27922285,117660.0,117650.0,1.6250493]
[1753726301484,0.23018285,117660.0,117650.0,1.64796996]
[1753726302484,0.23018285,117660.0,117650.0,2.16037542]
[1753726303084,0.22918285,117660.0,117650.0,2.16037542]
[1753726303286,0.22918285,117660.0,117650.0,1.64796996]
[1753726303487,0.27622285,117660.0,117650.0,1.64796996]
[1753726303681,0.27622285,117660.0,117650.0,1.64896996]
[1753726304994,0.22718285,117660.0,117650.0,1.64896996]
[1753726307396,0.22718285,117660.0,117650.0,1.91186996]
[1753726307887,0.27622285,117660.0,117650.0,1.91186996]
[1753726308685,0.01470775,117660.0,117650.0,1.91186996]
[1753726308892,0.01470775,117660.0,117650.0,2.42427542]
[1753726309288,0.2124563,117680.0,117670.0,0.3031278]
[1753726309493,0.21219824,117680.0,117670.0,1.60837651]
[1753726310097,0.16970694,117680.0,117670.0,1.60837651]
[1753726310591,0.2072201,117690.0,117670.0,1.43841871]
[1753726310784,0.4843536,117700.0,117690.0,0.3881266]
[1753726310990,0.4739673,117700.0,117690.0,1.62601206]
[1753726311298,0.1699077,117710.0,117700.0,0.4730574]
[1753726311498,0.2510486,117720.0,117710.0,0.1699077]
[1753726311499,0.5011944,117720.0,117710.0,0.1699077]
[1753726311692,0.4587176,117720.0,117710.0,1.49421316]
[1753726311893,0.12928,117720.0,117710.0,1.62594316]